bitfinex/quotes_BTCUSD_20251011
["timestamp","ask_amount","ask_price","bid_price","bid_amount"]
[1760182734392,0.6115584,112540.0,112530.0,0.02113]
[1760182734597,0.6115584,112540.0,112530.0,0.03977]
[1760182735050,0.6115584,112540.0,112530.0,0.04524814]
[1760182735247,0.6115584,112540.0,112530.0,0.03977]
[1760182735621,0.6115584,112540.0,112530.0,0.08459291]
[1760182735832,0.6115584,112540.0,112530.0,0.1845874]
[1760182736220,0.6115584,112540.0,112530.0,0.1634574]
[1760182736618,0.6308284,112540.0,112530.0,0.16275644]
[1760182737540,0.6115584,112540.0,112530.0,0.18318644]
[1760182737735,0.6115584,112540.0,112530.0,0.16275644]
[1760182738460,0.6115584,112540.0,112530.0,0.16116462]
[1760182738683,0.6115584,112540.0,112530.0,0.357735]
[1760182738908,0.6115584,112540.0,112530.0,0.447735]
[1760182739684,0.6115584,112540.0,112530.0,0.44888838]
[1760182740394,0.6115584,112540.0,112530.0,0.252318]
[1760182740757,0.6308284,112540.0,112530.0,0.252318]
[1760182741793,0.6115584,112540.0,112530.0,0.43004838]
[1760182742017,0.6115584,112540.0,112530.0,0.44888838]
[1760182743766,0.02672799,112540.0,112530.0,0.44888838]
[1760182743965,0.1776988,112550.0,112540.0,0.17771459]
[1760182744173,0.5176988,112550.0,112540.0,0.22430459]
[1760182744540,0.5176988,112550.0,112540.0,0.32429908]
[1760182744745,0.5176988,112550.0,112540.0,0.12774449]
[1760182745127,0.5176988,112550.0,112540.0,0.1914074]
[1760182745328,0.5176988,112550.0,112540.0,0.1924074]
[1760182745565,0.64544445,112550.0,112540.0,0.1537274]
[1760182745791,0.64544445,112550.0,112540.0,0.001]
[1760182745934,0.67217154,112550.0,112540.0,0.001]
[1760182746594,0.17771459,112540.0,112530.0,0.09]
[1760182746791,0.28658503,112540.0,112530.0,0.09]
[1760182746974,0.30585503,112540.0,112530.0,0.09]
[1760182747176,0.25874503,112540.0,112530.0,0.20983449]
[1760182747379,0.24462503,112540.0,112530.0,0.22867449]
[1760182747557,0.24462503,112540.0,112530.0,0.40640487]
[1760182747762,0.06691044,112540.0,112530.0,0.45122778]
[1760182747968,0.24462503,112540.0,112530.0,0.45122778]
[1760182749012,0.30585503,112540.0,112530.0,0.2348174]
[1760182751216,0.30585503,112540.0,112530.0,0.2546574]
[1760182751357,0.20585503,112540.0,112530.0,0.2348174]
[1760182751563,0.20585503,112540.0,112530.0,0.09115338]
[1760182751996,0.23258417,112540.0,112530.0,0.09115338]
[1760182752194,0.57258417,112540.0,112530.0,0.09115338]
[1760182753413,0.57258417,112540.0,112530.0,0.00115338]
[1760182755188,0.47258417,112540.0,112530.0,0.00115338]
[1760182758465,0.37258417,112540.0,112530.0,0.00115338]
[1760182758677,0.57562876,112540.0,112530.0,0.00115338]
[1760182760554,0.57562876,112540.0,112530.0,0.02099338]
[1760182760731,0.56977373,112540.0,112530.0,0.02099338]
[1760182761678,0.59761373,112540.0,112530.0,0.02099338]
[1760182761861,0.56977373,112540.0,112530.0,0.02091876]
[1760182762073,0.56977373,112540.0,112530.0,0.03524876]
[1760182762293,0.20304459,112540.0,112530.0,0.03524876]
[1760182762494,0.20304459,112540.0,112530.0,0.06379876]
[1760182762696,0.17771459,112540.0,112530.0,0.06379876]
[1760182763796,0.17771459,112540.0,112530.0,0.15379876]
[1760182764491,0.19698459,112540.0,112530.0,0.15379876]
[1760182765755,0.20357459,112540.0,112530.0,0.12524876]
[1760182766506,0.23256459,112540.0,112530.0,0.09107876]
[1760182767162,0.20357459,112540.0,112530.0,0.11090876]
[1760182767544,0.20357459,112540.0,112530.0,0.15443876]
[1760182768003,0.17771459,112540.0,112530.0,0.15443876]
[1760182768569,0.17771459,112540.0,112530.0,0.33216914]
[1760182768774,0.17771459,112540.0,112530.0,0.15443876]
[1760182769599,0.07771459,112540.0,112530.0,0.15443876]
[1760182770172,0.21854944,112550.0,112530.0,0.33216914]
[1760182770372,0.1776988,112550.0,112540.0,0.04353]
[1760182770894,0.1776988,112550.0,112540.0,0.06336]
[1760182771065,0.1776988,112550.0,112540.0,0.16335449]
[1760182771684,0.1776988,112550.0,112540.0,0.2081774]
[1760182772247,0.17774915,112550.0,112540.0,0.2081774]
[1760182772782,0.21145915,112550.0,112540.0,0.2081774]
[1760182774595,0.19186915,112550.0,112540.0,0.1799574]
[1760182774839,0.17774915,112550.0,112540.0,0.2081774]
[1760182775677,0.17774915,112550.0,112540.0,0.20867942]
[1760182778273,0.19733915,112550.0,112540.0,0.20867942]
[1760182780426,0.17774915,112550.0,112540.0,0.20867942]
[1760182785645,0.17774915,112550.0,112540.0,0.20708057]
[1760182791404,0.19625915,112550.0,112540.0,0.20708057]
[1760182791612,0.21136915,112550.0,112540.0,0.20791057]
[1760182791847,0.21136915,112550.0,112540.0,0.17886057]
[1760182792269,0.21136915,112550.0,112540.0,0.20791057]
[1760182792697,0.21136915,112550.0,112540.0,0.17886057]
[1760182793147,0.23984915,112550.0,112540.0,0.14531942]
[1760182793363,0.23984915,112550.0,112540.0,0.00050202]
[1760182793579,0.26657872,112550.0,112540.0,0.00050202]
[1760182795401,0.63673062,112550.0,112540.0,0.00050202]
[1760182796899,0.63873062,112550.0,112540.0,0.00050202]
[1760182798161,0.72526744,112550.0,112540.0,0.00050202]
[1760182798659,0.4932322,112550.0,112540.0,0.00050202]
[1760182798828,0.670931,112550.0,112540.0,0.00050202]
[1760182799236,0.69593099,112550.0,112540.0,0.00050202]
[1760182799418,0.60939417,112550.0,112540.0,0.00050202]
[1760182800012,0.58439418,112550.0,112540.0,0.00050202]
[1760182801214,0.55424228,112550.0,112540.0,0.00050202]
[1760182805045,0.54642837,112550.0,112540.0,0.00050202]
[1760182807515,0.20642837,112550.0,112540.0,0.00050202]
[1760182807866,0.54642837,112550.0,112540.0,0.06495202]
[1760182808566,0.54542837,112550.0,112540.0,0.06495202]
[1760182809411,0.54442837,112550.0,112540.0,0.06495202]
[1760182809605,0.54442837,112550.0,112540.0,0.06336167]
[1760182811725,0.54442837,112550.0,112540.0,0.03330167]
[1760182811941,0.54442837,112550.0,112530.0,0.04464]
[1760182811942,0.17771459,112540.0,112530.0,0.04464]
[1760182812363,0.17771459,112540.0,112530.0,0.06445]
[1760182812568,0.17771459,112540.0,112530.0,0.16444449]
[1760182813220,0.17771459,112540.0,112530.0,0.2092674]
[1760182816499,0.20444115,112540.0,112530.0,0.2092674]
[1760182817653,0.20444115,112540.0,112530.0,0.20984412]
[1760182831032,0.1755326,112550.0,112530.0,0.20984412]
[1760182831226,0.17771459,112540.0,112530.0,0.17978412]
[1760182831433,0.20444063,112540.0,112530.0,0.17978412]
[1760182831741,0.20444063,112540.0,112530.0,0.3865945]
[1760182832876,0.20444063,112540.0,112530.0,0.20886412]
[1760182835383,0.20444063,112540.0,112530.0,0.3865945]
[1760182835756,0.20444063,112540.0,112530.0,0.20886412]
[1760182838672,0.20444063,112540.0,112530.0,0.3865945]
[1760182840951,0.02672604,112540.0,112530.0,0.3865945]
[1760182841510,0.20444063,112540.0,112530.0,0.3865945]
[1760182842284,0.20444063,112540.0,112530.0,0.20886412]
[1760182842486,0.20444063,112540.0,112530.0,0.3865945]
[1760182843110,0.20444063,112540.0,112530.0,0.20886412]
[1760182845250,0.02672604,112540.0,112530.0,0.3865945]
[1760182845444,0.20444063,112540.0,112530.0,0.3865945]
[1760182845655,0.20208586,112540.0,112530.0,0.3865945]
[1760182845851,0.02437127,112540.0,112530.0,0.3865945]
[1760182846056,0.17771459,112540.0,112530.0,0.3865945]
[1760182849012,0.02767659,112550.0,112530.0,0.3865945]
[1760182849163,0.20537543,112550.0,112540.0,0.22681739]
[1760182849372,0.20537543,112550.0,112540.0,0.24058459]
[1760182849590,0.20537539,112550.0,112540.0,0.24058459]
[1760182849800,0.20537539,112550.0,112540.0,0.34057908]
[1760182850201,0.02767659,112550.0,112540.0,0.38540199]
[1760182850519,0.00095055,112550.0,112540.0,0.38540199]
[1760182851056,0.17864935,112550.0,112540.0,0.38540199]
[1760182852491,0.17864935,112550.0,112540.0,0.38640199]
[1760182852919,0.17864935,112550.0,112540.0,0.38740199]
[1760182855304,0.17864935,112550.0,112540.0,0.2096874]
[1760182857581,0.20537356,112550.0,112540.0,0.2096874]
[1760182858904,0.20537356,112550.0,112540.0,0.2076874]
[1760182873577,0.20537356,112550.0,112540.0,0.38540199]
[1760182879727,0.20537356,112550.0,112540.0,0.2076874]
[1760182884510,0.20537356,112550.0,112540.0,0.38540199]
[1760182886288,0.00095055,112550.0,112540.0,0.38540199]
[1760182887696,0.00095055,112550.0,112540.0,0.38640199]
[1760182888722,0.00095055,112550.0,112540.0,0.38740199]
[1760182894209,0.00095055,112550.0,112540.0,0.47693151]
[1760182896337,0.00095055,112550.0,112540.0,0.87693151]
[1760182913006,0.00095055,112550.0,112540.0,0.90364953]
[1760182914463,0.00095055,112550.0,112540.0,0.50364953]
[1760182914607,0.00095055,112550.0,112540.0,0.47693151]
[1760182914789,0.00095055,112550.0,112540.0,0.50365146]
[1760182916684,0.49786471,112570.0,112550.0,0.17769083]
[1760182916876,0.49791508,112570.0,112560.0,0.03427]
[1760182917082,0.49791508,112570.0,112560.0,0.06346]
[1760182917527,0.49791508,112570.0,112560.0,0.16345449]
[1760182918179,0.49791508,112570.0,112560.0,0.2082774]
[1760182921352,0.49791508,112570.0,112560.0,0.1790874]
[1760182922298,0.49906802,112570.0,112560.0,0.1790874]
[1760182922485,0.49906802,112570.0,112560.0,0.2082774]
[1760182923850,0.49906802,112570.0,112560.0,0.1790874]
[1760182924721,0.49906802,112570.0,112560.0,0.2082774]
[1760182925368,0.49906802,112570.0,112560.0,0.1790874]
[1760182926101,0.49906802,112570.0,112560.0,0.2082774]
[1760182926953,0.28858426,112570.0,112560.0,0.2082774]
[1760182928211,0.28858426,112570.0,112560.0,0.1790874]
[1760182928753,0.28858426,112570.0,112560.0,0.2082774]
[1760182932092,0.28858426,112570.0,112560.0,0.38596041]
[1760182933097,0.28858426,112570.0,112560.0,0.2082774]
[1760182934662,0.28858426,112570.0,112560.0,0.38596041]
[1760182935910,0.28858426,112570.0,112560.0,0.2082774]
[1760182943380,0.28858426,112570.0,112560.0,0.1790874]
[1760182943781,0.28858426,112570.0,112560.0,0.2082774]
[1760182947920,0.28858426,112570.0,112560.0,0.2092774]
[1760182948218,0.28858426,112570.0,112560.0,0.38696041]
[1760182949052,0.10203291,112570.0,112560.0,0.38696041]
[1760182949208,0.27970013,112570.0,112560.0,0.38696041]
[1760182950732,0.10203291,112570.0,112560.0,0.38696041]
[1760182956123,0.27970013,112570.0,112560.0,0.38696041]
[1760182957247,0.27970013,112570.0,112560.0,0.2092774]
[1760182958187,0.27970013,112570.0,112560.0,0.38696041]
[1760182989148,0.27970013,112570.0,112560.0,0.2092774]
[1760182989354,0.27970013,112570.0,112560.0,0.38696041]
[1760182990618,0.27970013,112570.0,112560.0,0.2092774]
[1760182990829,0.27970013,112570.0,112560.0,0.1458174]
[1760182991258,0.27970013,112570.0,112560.0,0.1653174]
[1760182991434,0.27970013,112570.0,112560.0,0.1643174]
[1760182992242,0.27970013,112570.0,112560.0,0.1448174]
[1760182992642,0.27970013,112570.0,112560.0,0.1643174]
[1760182994010,0.27970013,112570.0,112560.0,0.1787274]
[1760182994912,0.27970013,112570.0,112560.0,0.2060674]
[1760182998019,0.27970013,112570.0,112560.0,0.2070674]
[1760183019829,0.27970013,112570.0,112560.0,0.1797274]
[1760183020328,0.27970013,112570.0,112560.0,0.2071574]
[1760183020491,0.27970013,112570.0,112560.0,0.2061574]
[1760183020703,0.27970013,112570.0,112560.0,0.1787274]
[1760183023913,0.27970013,112570.0,112560.0,0.2050674]
[1760183029728,0.27970013,112570.0,112560.0,0.1787274]
[1760183029993,0.27970013,112570.0,112560.0,0.2050674]
[1760183031299,0.06821507,112570.0,112560.0,0.2050674]
[1760183031648,0.09493659,112570.0,112560.0,0.2050674]
[1760183041523,0.09493659,112570.0,112560.0,0.1448174]
[1760183041745,0.09493659,112570.0,112560.0,0.1625874]
[1760183041962,0.09493659,112570.0,112560.0,0.1769274]
[1760183042385,0.09493659,112570.0,112560.0,0.2056874]
[1760183044213,0.09493659,112570.0,112560.0,0.2066874]
[1760183046177,0.09493659,112570.0,112560.0,0.38437041]
[1760183046718,0.20438874,112570.0,112560.0,0.2066874]
[1760183047759,0.20438874,112570.0,112560.0,0.38437041]
[1760183048654,0.20438874,112570.0,112560.0,0.2066874]
[1760183095379,0.20438874,112570.0,112560.0,0.2052474]
[1760183095586,0.20438874,112570.0,112560.0,0.1779274]
[1760183095795,0.20438874,112570.0,112560.0,0.2052474]
[1760183096291,0.20438874,112570.0,112560.0,0.2042474]
[1760183096763,0.20438874,112570.0,112560.0,0.1769274]
[1760183097493,0.20438874,112570.0,112560.0,0.2049074]
[1760183099590,0.20438874,112570.0,112560.0,0.1769274]
[1760183099969,0.20438874,112570.0,112560.0,0.2049074]
[1760183102020,0.20438874,112570.0,112560.0,0.1448174]
[1760183102021,0.23454064,112570.0,112560.0,0.1448174]
[1760183102230,0.23454064,112570.0,112540.0,0.00095059]
[1760183102231,0.1776988,112550.0,112540.0,0.00095059]
[1760183102638,0.1776988,112550.0,112540.0,0.01844059]
[1760183103055,0.1776988,112550.0,112540.0,0.11843508]
[1760183103056,0.20442532,112550.0,112540.0,0.11843508]
[1760183103467,0.20442532,112550.0,112540.0,0.16325799]
[1760183104109,0.20442532,112550.0,112540.0,0.20416799]
[1760183104330,0.20442532,112550.0,112540.0,0.17618799]
[1760183106443,0.23457722,112550.0,112540.0,0.14576799]
[1760183106660,0.23457722,112550.0,112540.0,0.00095059]
[1760183117631,0.23457722,112550.0,112540.0,0.01844059]
[1760183117812,0.23457722,112550.0,112540.0,0.00095059]
[1760183135429,0.35867722,112550.0,112540.0,0.00095059]
[1760183141059,0.35867722,112550.0,112540.0,0.01879059]
[1760183141218,0.35867722,112550.0,112540.0,0.03126059]
[1760183142233,0.35867722,112550.0,112540.0,0.05684059]
[1760183142586,0.35867722,112550.0,112540.0,0.03126059]
[1760183145745,0.35867722,112550.0,112540.0,0.00095059]
[1760183145900,0.35784023,112550.0,112540.0,0.00095059]
[1760183149585,0.17685291,112550.0,112540.0,0.00095059]
[1760183149809,0.35455171,112550.0,112540.0,0.00095059]
[1760183154061,0.40777654,112550.0,112540.0,0.00095059]
[1760183155587,0.35455171,112550.0,112540.0,0.00095059]
[1760183156399,0.69455171,112550.0,112540.0,0.00095059]
[1760183166181,0.69455171,112550.0,112540.0,0.01833059]
[1760183166597,0.69455171,112550.0,112540.0,0.00095059]
[1760183167786,0.69455171,112550.0,112540.0,0.01833059]
[1760183167994,0.69455171,112550.0,112540.0,0.03083059]
[1760183169408,0.69455171,112550.0,112540.0,0.05585059]
[1760183169814,0.69455171,112550.0,112540.0,0.03083059]
[1760183170942,0.69455171,112550.0,112540.0,0.00095059]
[1760183171093,0.69455171,112550.0,112540.0,0.01833059]
[1760183173057,0.69455171,112550.0,112540.0,0.00095059]
[1760183175713,0.78177654,112550.0,112540.0,0.00095059]
[1760183175890,0.69455171,112550.0,112540.0,0.00095059]
[1760183202526,0.69455171,112550.0,112540.0,0.05585059]
[1760183202737,0.32439981,112550.0,112540.0,0.05585059]
[1760183203476,0.32439981,112550.0,112540.0,0.02973059]
[1760183206858,0.32439981,112550.0,112540.0,0.05585059]
[1760183207220,0.32439981,112550.0,112540.0,0.02973059]
[1760183207555,0.32439981,112550.0,112540.0,0.05585059]
[1760183209371,0.32439981,112550.0,112540.0,0.02973059]
[1760183209572,0.14670101,112550.0,112540.0,0.23356518]
[1760183209748,0.1241,112550.0,112540.0,0.23356518]
[1760183210559,0.1241,112550.0,112540.0,0.33355967]
[1760183211099,0.1241,112550.0,112540.0,0.37938258]
[1760183211302,0.1241,112550.0,112540.0,0.38038258]
[1760183211560,0.1241,112550.0,112540.0,0.37838258]
[1760183211711,0.1241,112550.0,112540.0,0.37938258]
[1760183211916,0.1241,112550.0,112540.0,0.38038258]
[1760183212118,0.1241,112550.0,112540.0,0.37938258]
[1760183212323,0.1241,112550.0,112540.0,0.38038258]
[1760183223874,0.1241,112550.0,112540.0,0.72038258]
[1760183224048,0.09745,112550.0,112540.0,0.8099121]
[1760183224432,0.09745,112550.0,112540.0,0.83662912]
[1760183224800,0.09745,112550.0,112540.0,1.23662912]
[1760183238210,0.09745,112550.0,112540.0,1.23562912]
[1760183238429,0.09745,112550.0,112540.0,1.23462912]
[1760183238654,0.09745,112550.0,112540.0,1.23662912]
[1760183239483,0.09745,112550.0,112540.0,1.26162911]
[1760183241427,0.09745,112550.0,112540.0,1.25962911]
[1760183241642,0.09745,112550.0,112540.0,1.26262911]
[1760183254825,0.03962886,112590.0,112580.0,0.17765144]
[1760183255125,0.03962886,112590.0,112580.0,0.23258144]
[1760183255624,0.03962886,112590.0,112580.0,0.33257593]
[1760183256022,0.03962886,112590.0,112580.0,0.37739884]
[1760183260259,0.04020515,112590.0,112580.0,0.37739884]
[1760183261518,0.05627515,112590.0,112580.0,0.35155884]
[1760183261721,0.04020515,112590.0,112580.0,0.37575884]
[1760183264583,0.05627515,112590.0,112580.0,0.35155884]
[1760183264778,0.04020515,112590.0,112580.0,0.37575884]
[1760183271591,0.05627515,112590.0,112580.0,0.1575774]
[1760183271827,0.17765144,112580.0,112570.0,0.00095026]
[1760183272123,0.20786649,112540.0,112530.0,0.03722]
[1760183272356,0.20786649,112540.0,112530.0,0.05405037]
[1760183272785,0.20786649,112540.0,112530.0,0.05635694]
[1760183273637,0.20786649,112540.0,112530.0,0.03215694]
[1760183275720,0.24909592,112540.0,112530.0,0.03215694]
[1760183275975,0.20786649,112540.0,112530.0,0.03215694]
[1760183277167,0.20886649,112540.0,112530.0,0.03215694]
[1760183278938,0.20886649,112540.0,112530.0,0.05801694]
[1760183279063,0.20886649,112540.0,112530.0,0.03215694]
[1760183279931,0.20886649,112540.0,112530.0,0.05801694]
[1760183280783,0.20886649,112540.0,112530.0,0.15801143]
[1760183280989,0.22298057,112540.0,112530.0,0.03215694]
[1760183281747,0.20786649,112540.0,112530.0,0.03215694]
[1760183282429,0.20786649,112540.0,112530.0,0.00235694]
[1760183283712,0.20886649,112540.0,112530.0,0.01979694]
[1760183283924,0.20886649,112540.0,112530.0,0.03257694]
[1760183284137,0.20986649,112540.0,112530.0,0.03257694]
[1760183284496,0.22729882,112540.0,112530.0,0.01513694]
[1760183284695,0.22729882,112540.0,112530.0,0.00235694]
[1760183284914,0.22729882,112540.0,112530.0,0.01979694]
[1760183285120,0.22629882,112540.0,112530.0,0.00235694]
[1760183285419,0.22729882,112540.0,112530.0,0.00235694]
[1760183286384,0.24382417,112540.0,112530.0,0.00235694]
[1760183287478,0.56639184,112540.0,112530.0,0.00235694]
[1760183293702,0.5664011,112540.0,112530.0,0.00235694]
[1760183295253,0.58545616,112540.0,112530.0,0.00235694]
[1760183299385,0.61740518,112540.0,112530.0,0.00235694]
[1760183300505,0.67354768,112540.0,112530.0,0.00235694]
[1760183300743,0.62571266,112540.0,112530.0,0.00235694]
[1760183300947,0.71351075,112540.0,112530.0,0.00235694]
[1760183301153,0.72945536,112540.0,112530.0,0.00235694]
[1760183301358,0.74568777,112540.0,112530.0,0.00235694]
[1760183303537,0.77242436,112540.0,112530.0,0.00235694]
[1760183303739,0.17774617,112520.0,112510.0,0.27172545]
[1760183303948,0.17774617,112520.0,112510.0,0.2717758]
[1760183303949,0.63984175,112520.0,112510.0,0.2717758]
[1760183304382,0.59187345,112520.0,112510.0,0.27292949]
[1760183305255,0.63982002,112520.0,112510.0,0.27292949]
[1760183305664,0.64082002,112520.0,112510.0,0.27292949]
[1760183307005,0.64182002,112520.0,112510.0,0.27292949]
[1760183307913,0.63852002,112520.0,112510.0,0.27292949]
[1760183310140,0.65464088,112520.0,112510.0,0.27292949]
[1760183313204,0.59057345,112520.0,112510.0,0.27292949]
[1760183313409,0.65464088,112520.0,112510.0,0.27292949]
[1760183313640,0.74336022,112520.0,112510.0,0.27292949]
[1760183313840,0.76836021,112520.0,112510.0,0.27292949]
[1760183315150,0.79510555,112520.0,112510.0,0.27292949]
[1760183315929,0.89510554,112520.0,112510.0,0.27292949]
[1760183317326,0.83103811,112520.0,112510.0,0.20081369]
[1760183318844,0.83003811,112520.0,112510.0,0.20081369]
[1760183319353,0.83103811,112520.0,112510.0,0.20081369]
[1760183319581,0.83103811,112520.0,112470.0,0.01203]
[1760183319582,0.17780938,112480.0,112470.0,0.01203]
[1760183319791,0.17780938,112480.0,112470.0,0.01253426]
[1760183320076,0.17780938,112480.0,112470.0,0.02957426]
[1760183322705,0.21829037,112480.0,112470.0,0.02957426]
[1760183323102,0.17780938,112480.0,112470.0,0.02957426]
[1760183325354,0.17530938,112480.0,112470.0,0.03188267]
[1760183327542,0.20546128,112480.0,112470.0,0.03188267]
[1760183330507,0.20546128,112480.0,112470.0,0.05648267]
[1760183331147,0.17527167,112490.0,112470.0,0.05648267]
[1760183331364,0.17780938,112480.0,112470.0,0.05417426]
[1760183333208,0.20796128,112480.0,112470.0,0.05417426]
[1760183334222,0.20796128,112480.0,112470.0,0.02957426]
[1760183334354,0.20796128,112480.0,112470.0,0.05417426]
[1760183336001,0.20796128,112480.0,112470.0,0.02957426]
[1760183337298,0.20796128,112480.0,112470.0,0.05553426]
[1760183337723,0.20796128,112480.0,112470.0,0.05784267]
[1760183340540,0.18669258,112500.0,112470.0,0.24077345]
[1760183340751,0.18666689,112500.0,112490.0,0.01213]
[1760183340910,0.21681879,112500.0,112490.0,0.02943]
[1760183341117,0.21681879,112500.0,112490.0,0.05539]
[1760183341338,0.17779358,112490.0,112480.0,0.01213]
[1760183341515,0.20794548,112490.0,112480.0,0.01213]
[1760183341715,0.20794548,112490.0,112480.0,0.02943]
[1760183341960,0.20794548,112490.0,112480.0,0.05539]
[1760183346232,0.20794548,112490.0,112480.0,0.02943]
[1760183346432,0.24740672,112490.0,112480.0,0.02943]
[1760183346672,0.24740672,112490.0,112480.0,0.03116116]
[1760183347049,0.24740672,112490.0,112480.0,0.00173116]
[1760183347401,0.27415304,112490.0,112480.0,0.00173116]
[1760183349251,0.61415304,112490.0,112480.0,0.00173116]
[1760183349453,0.63334597,112490.0,112480.0,0.00173116]
[1760183349650,0.63899347,112490.0,112480.0,0.00173116]
[1760183350200,0.63999347,112490.0,112480.0,0.00173116]
[1760183350400,0.63799347,112490.0,112480.0,0.00173116]
[1760183351326,0.63899347,112490.0,112480.0,0.00173116]
[1760183351782,0.63999347,112490.0,112480.0,0.00173116]
[1760183355190,0.60984157,112490.0,112480.0,0.00173116]
[1760183355396,0.63999347,112490.0,112480.0,0.00173116]
[1760183356854,0.66499346,112490.0,112480.0,0.00173116]
[1760183358746,0.63484156,112490.0,112480.0,0.00173116]
[1760183359340,0.66499346,112490.0,112480.0,0.00173116]
[1760183377946,0.57038033,112490.0,112480.0,0.00173116]
[1760183378152,0.60053223,112490.0,112480.0,0.00173116]
[1760183384957,0.54800872,112450.0,112440.0,0.0004]
[1760183385360,0.56722035,112450.0,112440.0,0.00055124]
[1760183385473,0.6225162,112450.0,112440.0,0.00055124]
[1760183385857,0.66848688,112450.0,112440.0,0.00055124]
[1760183386304,0.66948688,112450.0,112440.0,0.00055124]
[1760183386428,0.66848688,112450.0,112440.0,0.00055124]
[1760183386632,0.66948688,112450.0,112440.0,0.00055124]
[1760183387242,0.67046925,112450.0,112440.0,0.00055124]
[1760183387443,0.77511849,112450.0,112440.0,0.00055124]
[1760183387645,0.81578014,112450.0,112440.0,0.00055124]
[1760183388058,0.81678014,112450.0,112440.0,0.00055124]
[1760183388254,0.80011848,112450.0,112440.0,0.00055124]
[1760183389057,0.20802454,112440.0,112430.0,0.0004]
[1760183389251,0.54804036,112430.0,112420.0,0.0004]
[1760183389463,0.56723461,112430.0,112420.0,0.00048942]
[1760183390042,0.69223459,112430.0,112420.0,0.00048942]
[1760183390248,0.6672346,112430.0,112420.0,0.00048942]
[1760183390460,0.75952271,112430.0,112420.0,0.00048942]
[1760183390688,0.65952272,112430.0,112420.0,0.00048942]
[1760183390893,0.75952271,112430.0,112420.0,0.00048942]
[1760183391094,0.66052272,112430.0,112420.0,0.00048942]
[1760183391264,0.66052272,112430.0,112420.0,0.00395403]
[1760183391467,0.66152272,112430.0,112420.0,0.00395403]
[1760183391653,0.76152271,112430.0,112420.0,0.00395403]
[1760183392251,0.66152272,112430.0,112420.0,0.00395403]
[1760183392625,0.76152271,112430.0,112420.0,0.00395403]
[1760183393165,0.66152272,112430.0,112420.0,0.00395403]
[1760183393462,0.76152271,112430.0,112420.0,0.00395403]
[1760183394031,0.66152272,112430.0,112420.0,0.00395403]
[1760183397932,0.20805618,112420.0,112410.0,0.0004]
[1760183398138,0.29449888,112420.0,112410.0,0.0004]
[1760183399123,0.29549888,112420.0,112410.0,0.0004]
[1760183399460,0.29649888,112420.0,112410.0,0.0004]
[1760183401196,0.32149887,112420.0,112410.0,0.0004]
[1760183401411,0.66506808,112420.0,112410.0,1e-08]
[1760183401619,0.68426233,112420.0,112410.0,1e-08]
[1760183402510,0.68226233,112420.0,112410.0,1e-08]
[1760183402727,0.68326233,112420.0,112410.0,1e-08]
[1760183403649,0.81530569,112420.0,112410.0,1e-08]
[1760183403860,0.81630569,112420.0,112410.0,1e-08]
[1760183405144,0.86437075,112420.0,112410.0,1e-08]
[1760183406202,0.86413612,112420.0,112410.0,1e-08]
[1760183406335,0.83232738,112420.0,112410.0,1e-08]
[1760183406539,0.8488921,112420.0,112410.0,1e-08]
[1760183408116,0.67307199,112410.0,112400.0,1e-08]
[1760183408407,0.57308783,112400.0,112390.0,0.0004]
[1760183408580,0.59228208,112400.0,112390.0,0.0004]
[1760183408780,0.59228208,112400.0,112380.0,1e-08]
[1760183408781,0.20810367,112390.0,112380.0,1e-08]
[1760183410359,0.20910367,112390.0,112380.0,1e-08]
[1760183411605,0.21010367,112390.0,112380.0,1e-08]
[1760183411779,0.29882301,112390.0,112380.0,1e-08]
[1760183412413,0.31540444,112390.0,112380.0,1e-08]
[1760183413314,0.36640651,112390.0,112380.0,1e-08]
[1760183415219,0.41447157,112390.0,112380.0,1e-08]
[1760183415494,0.41447157,112390.0,112380.0,0.00173347]
[1760183416351,0.38266375,112390.0,112380.0,0.00173347]
[1760183416678,0.33635981,112390.0,112380.0,0.00173347]
[1760183418543,0.36651171,112390.0,112380.0,0.00173347]
[1760183421349,0.36651171,112390.0,112380.0,0.01766347]
[1760183421350,0.27779237,112390.0,112380.0,0.01766347]
[1760183421552,0.21572745,112390.0,112380.0,0.00173347]
[1760183422214,0.24587935,112390.0,112380.0,0.00173347]
[1760183422632,0.24487935,112390.0,112380.0,0.00173347]
[1760183422838,0.32335218,112390.0,112380.0,0.00173347]
[1760183423642,0.32341441,112390.0,112380.0,0.00173347]
[1760183426281,0.35532743,112390.0,112380.0,0.00173347]
[1760183426497,0.40339249,112390.0,112380.0,0.01784347]
[1760183426632,0.40339249,112390.0,112380.0,0.00173347]
[1760183427756,0.32391966,112390.0,112380.0,0.03028347]
[1760183428329,0.2758546,112390.0,112380.0,0.03028347]
[1760183429282,0.32391966,112390.0,112380.0,0.03028347]
[1760183430251,0.2758546,112390.0,112380.0,0.03028347]
[1760183438386,0.24394158,112390.0,112380.0,0.03028347]
[1760183438671,0.26844203,112390.0,112380.0,0.00173347]
[1760183439050,0.26844203,112390.0,112380.0,0.01784347]
[1760183439202,0.26844203,112390.0,112380.0,0.00173347]
[1760183440221,0.24924778,112390.0,112380.0,0.00173347]
[1760183440420,0.23260412,112390.0,112380.0,0.00173347]
[1760183441531,0.20810367,112390.0,112380.0,0.00173347]
[1760183441757,0.20810367,112390.0,112380.0,0.01858347]
[1760183441957,0.20810367,112390.0,112380.0,0.03130347]
[1760183442951,0.20810367,112390.0,112380.0,0.01445347]
[1760183443167,0.20810367,112390.0,112380.0,0.00173347]
[1760183443362,0.29682301,112390.0,112380.0,0.00173347]
[1760183445683,0.20810367,112390.0,112380.0,0.01858347]
[1760183446041,0.20810367,112390.0,112380.0,0.05608347]
[1760183446468,0.20810367,112390.0,112380.0,0.03130347]
[1760183446888,0.20810367,112390.0,112380.0,0.00173347]
[1760183454144,0.20910367,112390.0,112380.0,0.00173347]
[1760183454309,0.29782301,112390.0,112380.0,0.00173347]
[1760183455617,0.29882301,112390.0,112380.0,0.00173347]
[1760183456681,0.32559589,112390.0,112380.0,0.00173347]
[1760183462246,0.34229113,112390.0,112380.0,0.00173347]
[1760183462465,0.32559589,112390.0,112380.0,0.00173347]
[1760183466207,0.23687655,112390.0,112380.0,0.00173347]
[1760183469900,0.67807655,112390.0,112380.0,0.00173347]
[1760183470171,0.6973186,112390.0,112380.0,0.00173347]
[1760183470428,0.64792465,112390.0,112380.0,0.05246347]
[1760183470950,0.64792465,112390.0,112380.0,0.02886347]
[1760183471161,0.67807655,112390.0,112380.0,0.05246347]
[1760183471752,0.76579589,112390.0,112380.0,0.05246347]
[1760183472055,0.20572465,112390.0,112380.0,0.05246347]
[1760183472411,0.57687655,112390.0,112380.0,0.05246347]
[1760183472749,0.57487655,112390.0,112380.0,0.05246347]
[1760183476960,0.23487655,112390.0,112380.0,0.23043107]
[1760183477289,0.23487655,112390.0,112380.0,0.05246347]
[1760183478777,0.20472465,112390.0,112380.0,0.05805221]
[1760183479484,0.20472465,112390.0,112380.0,0.05905221]
[1760183483151,0.20472465,112390.0,112380.0,0.05346347]
[1760183491398,0.20472465,112390.0,112380.0,0.06167696]
[1760183491813,0.20472465,112390.0,112380.0,0.05346347]
[1760183493424,0.17795177,112390.0,112380.0,0.05346347]